[Event "Titled Tuesday Blitz August 15 Late 2023"]
[White "Silvestre, Christian"]
[Black "Kirk, Ezra"]
[WhiteFideId "30956269"]
[BlackFideId "600067"]
[WhiteElo "2374"]
[BlackElo "2575"]
[Result "1-0"]
[Round "6"]
[TimeControl "180+1"]
[Date "2023.08.15"]
[WhiteClock "0:00:20"]
[BlackClock "0:00:00"]
[Board "68"]

1. e4 {[%clk 0:03:00]}  e6 {[%clk 0:02:59]} 2. Qe2 {[%clk 0:02:59]}  e5 {[%clk 0:02:57]} 3. Nf3 {[%clk 0:02:57]}  Nc6 {[%clk 0:02:56]} 4. c3 {[%clk 0:02:55]}  Nf6 {[%clk 0:02:50]} 5. g3 {[%clk 0:02:51]}  Be7 {[%clk 0:02:49]} 6. Bg2 {[%clk 0:02:50]}  O-O {[%clk 0:02:50]} 7. O-O {[%clk 0:02:49]}  Re8 {[%clk 0:02:39]} 8. Rd1 {[%clk 0:02:46]}  d5 {[%clk 0:02:33]} 9. d3 {[%clk 0:02:42]}  h6 {[%clk 0:02:20]} 10. h3 {[%clk 0:02:40]}  a5 {[%clk 0:02:10]} 11. a4 {[%clk 0:02:34]}  Bc5 {[%clk 0:02:07]} 12. Be3 {[%clk 0:02:30]}  d4 {[%clk 0:02:04]} 13. Bc1 {[%clk 0:02:27]}  Be6 {[%clk 0:01:51]} 14. c4 {[%clk 0:02:25]}  Nd7 {[%clk 0:01:46]} 15. Nh4 {[%clk 0:02:19]}  Bf8 {[%clk 0:01:41]} 16. Na3 {[%clk 0:02:17]}  Nc5 {[%clk 0:01:41]} 17. Nc2 {[%clk 0:01:43]}  Nb3 {[%clk 0:01:33]} 18. Ra2 {[%clk 0:01:40]}  Be7 {[%clk 0:01:30]} 19. Nf5 {[%clk 0:01:38]}  Bg5 {[%clk 0:01:30]} 20. Bxg5 {[%clk 0:01:25]}  hxg5 {[%clk 0:01:15]} 21. g4 {[%clk 0:01:19]}  g6 {[%clk 0:01:13]} 22. Ng3 {[%clk 0:01:17]}  Nc5 {[%clk 0:01:07]} 23. Nf1 {[%clk 0:01:12]}  Kg7 {[%clk 0:01:02]} 24. Nd2 {[%clk 0:01:09]}  f6 {[%clk 0:00:58]} 25. b3 {[%clk 0:01:08]}  Bd7 {[%clk 0:00:54]} 26. Raa1 {[%clk 0:01:07]}  Ne6 {[%clk 0:00:54]} 27. Bf1 {[%clk 0:01:00]}  Rh8 {[%clk 0:00:47]} 28. Qf3 {[%clk 0:01:00]}  Qe7 {[%clk 0:00:44]} 29. Ne1 {[%clk 0:01:00]}  Ncd8 {[%clk 0:00:42]} 30. Ng2 {[%clk 0:01:00]}  Nf4 {[%clk 0:00:37]} 31. Nxf4 {[%clk 0:01:00]}  gxf4 {[%clk 0:00:38]} 32. Qg2 {[%clk 0:00:56]}  Ne6 {[%clk 0:00:37]} 33. Nf3 {[%clk 0:00:55]}  Ng5 {[%clk 0:00:27]} 34. Nxg5 {[%clk 0:00:55]}  fxg5 {[%clk 0:00:28]} 35. f3 {[%clk 0:00:54]}  Rh7 {[%clk 0:00:25]} 36. Qd2 {[%clk 0:00:52]}  b6 {[%clk 0:00:24]} 37. Re1 {[%clk 0:00:52]}  Rah8 {[%clk 0:00:24]} 38. Re2 {[%clk 0:00:52]}  Rxh3 {[%clk 0:00:22]} 39. Bxh3 {[%clk 0:00:53]}  Rxh3 {[%clk 0:00:22]} 40. Rf1 {[%clk 0:00:50]}  Qa3 {[%clk 0:00:19]} 41. Qb2 {[%clk 0:00:46]}  Qb4 {[%clk 0:00:15]} 42. Rh2 {[%clk 0:00:45]}  Rxh2 {[%clk 0:00:15]} 43. Kxh2 {[%clk 0:00:45]}  Bxa4 {[%clk 0:00:15]} 44. Rb1 {[%clk 0:00:41]}  Bd7 {[%clk 0:00:15]} 45. Kg2 {[%clk 0:00:41]}  Kf6 {[%clk 0:00:13]} 46. Qc1 {[%clk 0:00:38]}  Qf8 {[%clk 0:00:09]} 47. Qh1 {[%clk 0:00:38]}  b5 {[%clk 0:00:07]} 48. Qh7 {[%clk 0:00:35]}  Qg7 {[%clk 0:00:03]} 49. Qxg7+ {[%clk 0:00:28]}  Kxg7 {[%clk 0:00:04]} 50. Rc1 {[%clk 0:00:26]}  b4 {[%clk 0:00:02]} 51. Ra1 {[%clk 0:00:25]}  a4 {[%clk 0:00:03]} 52. bxa4 {[%clk 0:00:26]}  Bc8 {[%clk 0:00:03]} 53. c5 {[%clk 0:00:22]}  Ba6 {[%clk 0:00:03]} 54. Rb1 {[%clk 0:00:22]}  Bxd3 {[%clk 0:00:03]} 55. Rxb4 {[%clk 0:00:23]}  Ba6 {[%clk 0:00:02]} 56. Rb8 {[%clk 0:00:23]}  Kf7 {[%clk 0:00:03]} 57. Ra8 {[%clk 0:00:23]}  Bc4 {[%clk 0:00:03]} 58. Ra7 {[%clk 0:00:23]}  Ke6 {[%clk 0:00:02]} 59. Rxc7 {[%clk 0:00:24]}  d3 {[%clk 0:00:02]} 60. Rc8 {[%clk 0:00:22]}  Ke7 {[%clk 0:00:03]} 61. Rc6 {[%clk 0:00:20]}  Bb3 {[%clk 0:00:02]} 62. Rd6 {[%clk 0:00:20]}  Bxa4 {[%clk 0:00:02]} 63. Rxd3 {[%clk 0:00:20]}  Bb5 {[%clk 0:00:00]} 64. Rd6 {[%clk 0:00:20]} 1-0


[Site "https://www.chess.com"]

[Event "Titled Tuesday Blitz August 15 Late 2023"]
[White "Schekachikhin, Maksim"]
[Black "BeautiFullMindChess"]
[WhiteFideId "24177830"]
[WhiteElo "2571"]
[BlackElo "2231"]
[Result "1-0"]
[Round "6"]
[TimeControl "180+1"]
[Date "2023.08.15"]
[WhiteClock "0:00:18"]
[BlackClock "0:00:04"]
[Board "69"]

1. d4 {[%clk 0:03:00]}  f5 {[%clk 0:02:57]} 2. Bf4 {[%clk 0:02:59]}  Nf6 {[%clk 0:02:56]} 3. e3 {[%clk 0:02:59]}  g6 {[%clk 0:02:56]} 4. Nf3 {[%clk 0:02:57]}  Bg7 {[%clk 0:02:56]} 5. Bc4 {[%clk 0:02:56]}  d5 {[%clk 0:02:43]} 6. Bb3 {[%clk 0:02:54]}  O-O {[%clk 0:02:43]} 7. c4 {[%clk 0:02:54]}  c6 {[%clk 0:02:39]} 8. Nc3 {[%clk 0:02:54]}  e6 {[%clk 0:02:30]} 9. h3 {[%clk 0:02:54]}  Ne4 {[%clk 0:02:29]} 10. O-O {[%clk 0:02:52]}  g5 {[%clk 0:02:18]} 11. Be5 {[%clk 0:02:51]}  Bh6 {[%clk 0:01:55]} 12. Nxe4 {[%clk 0:02:46]}  dxe4 {[%clk 0:01:20]} 13. Nd2 {[%clk 0:02:47]}  Nd7 {[%clk 0:01:20]} 14. Bd6 {[%clk 0:02:46]}  Rf6 {[%clk 0:01:18]} 15. c5 {[%clk 0:02:46]}  Rg6 {[%clk 0:01:10]} 16. f3 {[%clk 0:02:42]}  g4 {[%clk 0:00:36]} 17. f4 {[%clk 0:02:26]}  gxh3 {[%clk 0:00:33]} 18. Rf2 {[%clk 0:02:26]}  Nf6 {[%clk 0:00:26]} 19. Qe1 {[%clk 0:02:05]}  Ng4 {[%clk 0:00:20]} 20. Re2 {[%clk 0:02:05]}  h2+ {[%clk 0:00:15]} 21. Kh1 {[%clk 0:02:03]}  Bd7 {[%clk 0:00:15]} 22. Nf1 {[%clk 0:02:01]}  Kf7 {[%clk 0:00:15]} 23. Rd2 {[%clk 0:01:56]}  Qf6 {[%clk 0:00:14]} 24. Bd1 {[%clk 0:01:54]}  Rag8 {[%clk 0:00:13]} 25. b4 {[%clk 0:01:49]}  Bf8 {[%clk 0:00:12]} 26. Bxg4 {[%clk 0:01:44]}  Rxg4 {[%clk 0:00:10]} 27. Be5 {[%clk 0:01:44]}  Qh6 {[%clk 0:00:08]} 28. g3 {[%clk 0:01:37]}  Qg6 {[%clk 0:00:03]} 29. Rxh2 {[%clk 0:01:35]}  h5 {[%clk 0:00:02]} 30. Qf2 {[%clk 0:01:24]}  Be7 {[%clk 0:00:02]} 31. Rh3 {[%clk 0:00:52]}  h4 {[%clk 0:00:03]} 32. Kg2 {[%clk 0:00:43]}  hxg3 {[%clk 0:00:04]} 33. Qg1 {[%clk 0:00:42]}  Rh4 {[%clk 0:00:04]} 34. Rxh4 {[%clk 0:00:39]}  Bxh4 {[%clk 0:00:04]} 35. Nd2 {[%clk 0:00:40]}  Qg4 {[%clk 0:00:05]} 36. Qd1 {[%clk 0:00:40]}  b6 {[%clk 0:00:05]} 37. Qxg4 {[%clk 0:00:39]}  Rxg4 {[%clk 0:00:06]} 38. Rh1 {[%clk 0:00:36]}  bxc5 {[%clk 0:00:06]} 39. dxc5 {[%clk 0:00:36]}  Bc8 {[%clk 0:00:07]} 40. Nc4 {[%clk 0:00:34]}  Ba6 {[%clk 0:00:07]} 41. Nd6+ {[%clk 0:00:34]}  Ke7 {[%clk 0:00:08]} 42. Re1 {[%clk 0:00:31]}  Bd3 {[%clk 0:00:08]} 43. a4 {[%clk 0:00:29]}  Kd7 {[%clk 0:00:08]} 44. b5 {[%clk 0:00:29]}  Kd8 {[%clk 0:00:06]} 45. bxc6 {[%clk 0:00:27]}  Kc7 {[%clk 0:00:07]} 46. Nxf5+ {[%clk 0:00:27]}  Kxc6 {[%clk 0:00:08]} 47. Nxh4 {[%clk 0:00:26]}  Rxh4 {[%clk 0:00:07]} 48. Kxg3 {[%clk 0:00:27]}  Rh6 {[%clk 0:00:05]} 49. Bd4 {[%clk 0:00:25]}  Rg6+ {[%clk 0:00:06]} 50. Kh4 {[%clk 0:00:25]}  Kd5 {[%clk 0:00:06]} 51. Rc1 {[%clk 0:00:23]}  Rg8 {[%clk 0:00:06]} 52. c6 {[%clk 0:00:22]}  Be2 {[%clk 0:00:07]} 53. c7 {[%clk 0:00:17]}  Ba6 {[%clk 0:00:07]} 54. Rc5+ {[%clk 0:00:15]}  Kd6 {[%clk 0:00:06]} 55. Ra5 {[%clk 0:00:16]}  Bc8 {[%clk 0:00:07]} 56. Be5+ {[%clk 0:00:16]}  Kc6 {[%clk 0:00:06]} 57. Rxa7 {[%clk 0:00:16]}  Kb6 {[%clk 0:00:07]} 58. Ra8 {[%clk 0:00:16]}  Rh8+ {[%clk 0:00:07]} 59. Kg5 {[%clk 0:00:16]}  Rg8+ {[%clk 0:00:07]} 60. Kf6 {[%clk 0:00:17]}  Kb7 {[%clk 0:00:06]} 61. Rb8+ {[%clk 0:00:17]}  Kc6 {[%clk 0:00:07]} 62. a5 {[%clk 0:00:17]}  Rf8+ {[%clk 0:00:06]} 63. Ke7 {[%clk 0:00:17]}  Rg8 {[%clk 0:00:06]} 64. a6 {[%clk 0:00:18]}  Bxa6 {[%clk 0:00:05]} 65. Rxg8 {[%clk 0:00:17]}  Bb7 {[%clk 0:00:04]} 66. c8=Q+ {[%clk 0:00:17]}  Bxc8 {[%clk 0:00:04]} 67. Rxc8+ {[%clk 0:00:18]} 1-0


[Site "https://www.chess.com"]

[Event "Titled Tuesday Blitz August 15 Late 2023"]
[White "Dinu, Dumitru-Daniel"]
[Black "Troff, Kayden"]
[WhiteFideId "1208403"]
[BlackFideId "2047896"]
[WhiteElo "2484"]
[BlackElo "2758"]
[Result "0-1"]
[Round "6"]
[TimeControl "180+1"]
[Date "2023.08.15"]
[WhiteClock "0:01:55"]
[BlackClock "0:02:04"]
[Board "71"]

1. e4 {[%clk 0:03:00]}  c5 {[%clk 0:02:59]} 2. b3 {[%clk 0:02:59]}  a6 {[%clk 0:02:51]} 3. Bb2 {[%clk 0:02:57]}  Nc6 {[%clk 0:02:52]} 4. Nf3 {[%clk 0:02:57]}  d6 {[%clk 0:02:48]} 5. d4 {[%clk 0:02:54]}  cxd4 {[%clk 0:02:48]} 6. Nxd4 {[%clk 0:02:54]}  e5 {[%clk 0:02:42]} 7. Nxc6 {[%clk 0:02:53]}  bxc6 {[%clk 0:02:43]} 8. Bc4 {[%clk 0:02:53]}  Nf6 {[%clk 0:02:42]} 9. O-O {[%clk 0:02:53]}  g5 {[%clk 0:02:40]} 10. Nd2 {[%clk 0:02:38]}  h5 {[%clk 0:02:27]} 11. Nf3 {[%clk 0:02:38]}  Bh6 {[%clk 0:02:24]} 12. Ba3 {[%clk 0:02:30]}  g4 {[%clk 0:02:12]} 13. Ne1 {[%clk 0:02:20]}  Nxe4 {[%clk 0:02:10]} 14. Bd3 {[%clk 0:01:55]}  Nc3 {[%clk 0:02:04]} 0-1


[Site "https://www.chess.com"]

[Event "Titled Tuesday Blitz August 15 Late 2023"]
[White "Leiva, Gianmarco"]
[Black "Arencibia Monduy, Antonio"]
[WhiteFideId "3804399"]
[BlackFideId "3507939"]
[WhiteElo "2697"]
[BlackElo "2470"]
[Result "1-0"]
[Round "6"]
[TimeControl "180+1"]
[Date "2023.08.15"]
[WhiteClock "0:00:03"]
[BlackClock "0:00:13"]
[Board "73"]

1. d4 {[%clk 0:01:02]}  Nf6 {[%clk 0:02:58]} 2. Nf3 {[%clk 0:00:56]}  c5 {[%clk 0:02:56]} 3. d5 {[%clk 0:00:54]}  d6 {[%clk 0:02:56]} 4. Nc3 {[%clk 0:00:54]}  e6 {[%clk 0:02:54]} 5. e4 {[%clk 0:00:54]}  exd5 {[%clk 0:02:54]} 6. exd5 {[%clk 0:00:55]}  g6 {[%clk 0:02:54]} 7. a4 {[%clk 0:00:43]}  Bg7 {[%clk 0:02:54]} 8. Bb5+ {[%clk 0:00:35]}  Nbd7 {[%clk 0:02:49]} 9. Qe2+ {[%clk 0:00:35]}  Kf8 {[%clk 0:02:49]} 10. Bf4 {[%clk 0:00:35]}  Ne8 {[%clk 0:02:45]} 11. O-O {[%clk 0:00:35]}  a6 {[%clk 0:02:35]} 12. Rfe1 {[%clk 0:00:35]}  axb5 {[%clk 0:02:30]} 13. Qxe8+ {[%clk 0:00:35]}  Qxe8 {[%clk 0:02:28]} 14. Bxd6+ {[%clk 0:00:36]}  Kg8 {[%clk 0:02:28]} 15. Rxe8+ {[%clk 0:00:36]}  Bf8 {[%clk 0:02:28]} 16. Bxf8 {[%clk 0:00:21]}  Nxf8 {[%clk 0:02:28]} 17. Nxb5 {[%clk 0:00:22]}  Kg7 {[%clk 0:02:19]} 18. Nc7 {[%clk 0:00:22]}  Rb8 {[%clk 0:02:14]} 19. Rae1 {[%clk 0:00:22]}  Nd7 {[%clk 0:01:59]} 20. Rxh8 {[%clk 0:00:22]}  Kxh8 {[%clk 0:01:59]} 21. Re8+ {[%clk 0:00:22]}  Kg7 {[%clk 0:02:00]} 22. a5 {[%clk 0:00:23]}  b5 {[%clk 0:01:42]} 23. axb6 {[%clk 0:00:14]}  Nxb6 {[%clk 0:01:39]} 24. Ne5 {[%clk 0:00:11]}  Rb7 {[%clk 0:01:38]} 25. d6 {[%clk 0:00:11]}  Bf5 {[%clk 0:01:32]} 26. c3 {[%clk 0:00:08]}  Nc8 {[%clk 0:01:25]} 27. Re7 {[%clk 0:00:05]}  Nxd6 {[%clk 0:01:22]} 28. Ne8+ {[%clk 0:00:05]}  Kf8 {[%clk 0:01:19]} 29. Rxb7 {[%clk 0:00:04]}  Nxb7 {[%clk 0:01:20]} 30. Nf6 {[%clk 0:00:03]}  Ke7 {[%clk 0:01:14]} 31. Nxh7 {[%clk 0:00:03]}  f6 {[%clk 0:01:09]} 32. g4 {[%clk 0:00:03]}  fxe5 {[%clk 0:01:08]} 33. gxf5 {[%clk 0:00:03]}  gxf5 {[%clk 0:01:09]} 34. Ng5 {[%clk 0:00:03]}  Nd6 {[%clk 0:01:07]} 35. f4 {[%clk 0:00:03]}  e4 {[%clk 0:01:06]} 36. Nh3 {[%clk 0:00:03]}  Nc4 {[%clk 0:01:06]} 37. b4 {[%clk 0:00:03]}  cxb4 {[%clk 0:01:04]} 38. cxb4 {[%clk 0:00:04]}  Kd6 {[%clk 0:01:01]} 39. Kf2 {[%clk 0:00:04]}  Kd5 {[%clk 0:00:58]} 40. Kg3 {[%clk 0:00:04]}  Kd4 {[%clk 0:00:58]} 41. Kh4 {[%clk 0:00:04]}  e3 {[%clk 0:00:56]} 42. Kg5 {[%clk 0:00:04]}  Nd6 {[%clk 0:00:55]} 43. Ng1 {[%clk 0:00:03]}  Kc4 {[%clk 0:00:47]} 44. h4 {[%clk 0:00:03]}  Kxb4 {[%clk 0:00:47]} 45. h5 {[%clk 0:00:04]}  Kc3 {[%clk 0:00:47]} 46. h6 {[%clk 0:00:03]}  Nf7+ {[%clk 0:00:47]} 47. Kg6 {[%clk 0:00:04]}  Nxh6 {[%clk 0:00:39]} 48. Kxh6 {[%clk 0:00:04]}  Kd3 {[%clk 0:00:39]} 49. Kg5 {[%clk 0:00:05]}  Ke4 {[%clk 0:00:39]} 50. Ne2 {[%clk 0:00:04]}  Kf3 {[%clk 0:00:34]} 51. Nc3 {[%clk 0:00:04]}  Kf2 {[%clk 0:00:16]} 52. Kxf5 {[%clk 0:00:03]}  Ke1 {[%clk 0:00:17]} 53. Ke4 {[%clk 0:00:03]}  Kd2 {[%clk 0:00:17]} 54. Kd4 {[%clk 0:00:04]}  e2 {[%clk 0:00:13]} 55. Nxe2 {[%clk 0:00:03]} 1-0


[Site "https://www.chess.com"]

[Event "Titled Tuesday Blitz August 15 Late 2023"]
[White "Gubajdullin, Alexei"]
[Black "brm72"]
[WhiteFideId "4141202"]
[WhiteElo "2690"]
[BlackElo "2470"]
[Result "0-1"]
[Round "6"]
[TimeControl "180+1"]
[Date "2023.08.15"]
[WhiteClock "0:00:00"]
[BlackClock "0:00:18"]
[Board "74"]

1. d4 {[%clk 0:02:59]}  Nf6 {[%clk 0:02:59]} 2. Nf3 {[%clk 0:02:59]}  g6 {[%clk 0:02:59]} 3. Bf4 {[%clk 0:02:59]}  Bg7 {[%clk 0:02:59]} 4. e3 {[%clk 0:03:00]}  O-O {[%clk 0:02:59]} 5. Be2 {[%clk 0:03:00]}  d6 {[%clk 0:03:00]} 6. O-O {[%clk 0:03:00]}  b6 {[%clk 0:02:57]} 7. h3 {[%clk 0:03:00]}  c5 {[%clk 0:02:56]} 8. a4 {[%clk 0:02:59]}  a6 {[%clk 0:02:55]} 9. c3 {[%clk 0:02:58]}  Nbd7 {[%clk 0:02:54]} 10. Nbd2 {[%clk 0:02:56]}  Bb7 {[%clk 0:02:52]} 11. Bh2 {[%clk 0:02:54]}  Ra7 {[%clk 0:02:53]} 12. Ne1 {[%clk 0:02:40]}  Qa8 {[%clk 0:02:52]} 13. Bf3 {[%clk 0:02:40]}  Ne4 {[%clk 0:02:47]} 14. Nxe4 {[%clk 0:02:39]}  Bxe4 {[%clk 0:02:47]} 15. Bxe4 {[%clk 0:02:39]}  Qxe4 {[%clk 0:02:48]} 16. Qf3 {[%clk 0:02:39]}  Qxf3 {[%clk 0:02:47]} 17. Nxf3 {[%clk 0:02:39]}  Rfa8 {[%clk 0:02:47]} 18. Nd2 {[%clk 0:02:24]}  b5 {[%clk 0:02:47]} 19. a5 {[%clk 0:02:19]}  Rb7 {[%clk 0:02:44]} 20. d5 {[%clk 0:01:57]}  b4 {[%clk 0:02:36]} 21. Rfc1 {[%clk 0:01:53]}  bxc3 {[%clk 0:02:31]} 22. bxc3 {[%clk 0:01:53]}  Rab8 {[%clk 0:02:26]} 23. Bg3 {[%clk 0:01:50]}  Rb2 {[%clk 0:01:49]} 24. Nc4 {[%clk 0:01:34]}  R2b3 {[%clk 0:01:49]} 25. Ra3 {[%clk 0:01:34]}  Rb1 {[%clk 0:01:34]} 26. Rxb1 {[%clk 0:01:30]}  Rxb1+ {[%clk 0:01:35]} 27. Kh2 {[%clk 0:01:30]}  Kf8 {[%clk 0:01:25]} 28. f3 {[%clk 0:01:02]}  Ke8 {[%clk 0:01:23]} 29. Nd2 {[%clk 0:00:50]}  Rb5 {[%clk 0:01:20]} 30. Ne4 {[%clk 0:00:45]}  h6 {[%clk 0:01:18]} 31. Bxd6 {[%clk 0:00:44]}  f5 {[%clk 0:01:16]} 32. c4 {[%clk 0:00:37]}  Rb2 {[%clk 0:01:04]} 33. Nxc5 {[%clk 0:00:36]}  exd6 {[%clk 0:01:04]} 34. Nxa6 {[%clk 0:00:36]}  Kd8 {[%clk 0:00:58]} 35. c5 {[%clk 0:00:29]}  dxc5 {[%clk 0:00:55]} 36. f4 {[%clk 0:00:26]}  g5 {[%clk 0:00:54]} 37. d6 {[%clk 0:00:26]}  Bf8 {[%clk 0:00:48]} 38. Nc7 {[%clk 0:00:23]}  Bxd6 {[%clk 0:00:45]} 39. Ne6+ {[%clk 0:00:20]}  Ke7 {[%clk 0:00:44]} 40. Ng7 {[%clk 0:00:19]}  gxf4 {[%clk 0:00:43]} 41. Nxf5+ {[%clk 0:00:19]}  Ke6 {[%clk 0:00:44]} 42. Nxd6 {[%clk 0:00:18]}  Kxd6 {[%clk 0:00:39]} 43. exf4 {[%clk 0:00:17]}  c4 {[%clk 0:00:31]} 44. a6 {[%clk 0:00:17]}  Nb6 {[%clk 0:00:31]} 45. a7 {[%clk 0:00:16]}  Na8 {[%clk 0:00:31]} 46. Ra6+ {[%clk 0:00:16]}  Rb6 {[%clk 0:00:30]} 47. Ra5 {[%clk 0:00:13]}  c3 {[%clk 0:00:29]} 48. Ra1 {[%clk 0:00:10]}  Kd5 {[%clk 0:00:24]} 49. Kg3 {[%clk 0:00:10]}  Kc4 {[%clk 0:00:22]} 50. Kg4 {[%clk 0:00:09]}  c2 {[%clk 0:00:20]} 51. Kh5 {[%clk 0:00:09]}  Rb1 {[%clk 0:00:20]} 52. Ra6 {[%clk 0:00:00]}  Kb5 {[%clk 0:00:18]} 0-1


[Site "https://www.chess.com"]

[Event "Titled Tuesday Blitz August 15 Late 2023"]
[White "Nasir, Zehn"]
[Black "Ankerst, Mihael"]
[WhiteFideId "2613239"]
[BlackFideId "14602369"]
[WhiteElo "2610"]
[BlackElo "2463"]
[Result "1-0"]
[Round "6"]
[TimeControl "180+1"]
[Date "2023.08.15"]
[WhiteClock "0:00:13"]
[BlackClock "0:00:00"]
[Board "76"]

1. d4 {[%clk 0:03:00]}  Nf6 {[%clk 0:02:58]} 2. Bf4 {[%clk 0:03:01]}  b6 {[%clk 0:02:57]} 3. e3 {[%clk 0:03:01]}  Bb7 {[%clk 0:02:57]} 4. Nf3 {[%clk 0:03:01]}  e6 {[%clk 0:02:55]} 5. Nc3 {[%clk 0:03:02]}  Bb4 {[%clk 0:02:48]} 6. Bd3 {[%clk 0:03:01]}  Nd5 {[%clk 0:02:47]} 7. Bg5 {[%clk 0:02:11]}  f6 {[%clk 0:02:47]} 8. Ne5 {[%clk 0:02:07]}  g6 {[%clk 0:02:21]} 9. Bh4 {[%clk 0:01:17]}  Nxc3 {[%clk 0:02:19]} 10. bxc3 {[%clk 0:01:17]}  Bxc3+ {[%clk 0:02:18]} 11. Kf1 {[%clk 0:01:17]}  Bxa1 {[%clk 0:02:18]} 12. Qxa1 {[%clk 0:01:08]}  g5 {[%clk 0:02:18]} 13. Qd1 {[%clk 0:01:04]}  Ke7 {[%clk 0:01:01]} 14. Qh5 {[%clk 0:00:51]}  Qe8 {[%clk 0:00:59]} 15. Qh6 {[%clk 0:00:35]}  Qf8 {[%clk 0:00:52]} 16. Qh5 {[%clk 0:00:21]}  gxh4 {[%clk 0:00:51]} 17. Qxh4 {[%clk 0:00:20]}  Qg7 {[%clk 0:00:45]} 18. Rg1 {[%clk 0:00:19]}  Nc6 {[%clk 0:00:40]} 19. Nf3 {[%clk 0:00:19]}  Nb4 {[%clk 0:00:39]} 20. Be2 {[%clk 0:00:17]}  Nxc2 {[%clk 0:00:39]} 21. d5 {[%clk 0:00:17]}  Bxd5 {[%clk 0:00:37]} 22. Qa4 {[%clk 0:00:17]}  Qg6 {[%clk 0:00:24]} 23. Bd1 {[%clk 0:00:17]}  Qd3+ {[%clk 0:00:19]} 24. Be2 {[%clk 0:00:15]}  Qc3 {[%clk 0:00:13]} 25. g4 {[%clk 0:00:13]}  Rhg8 {[%clk 0:00:09]} 26. Rg3 {[%clk 0:00:13]}  h5 {[%clk 0:00:08]} 27. h3 {[%clk 0:00:13]}  h4 {[%clk 0:00:08]} 28. Rg1 {[%clk 0:00:12]}  Bxf3 {[%clk 0:00:00]} 29. Bxf3 {[%clk 0:00:13]} 1-0


[Site "https://www.chess.com"]

[Event "Titled Tuesday Blitz August 15 Late 2023"]
[White "Bueno, Alfeu Junior Varela"]
[Black "Sargsyan, Anna M."]
[WhiteFideId "2108879"]
[BlackFideId "13308130"]
[WhiteElo "2452"]
[BlackElo "2569"]
[Result "1-0"]
[Round "6"]
[TimeControl "180+1"]
[Date "2023.08.15"]
[WhiteClock "0:00:35"]
[BlackClock "0:02:03"]
[Board "78"]

1. e4 {[%clk 0:02:57]}  c6 {[%clk 0:02:59]} 2. d4 {[%clk 0:02:57]}  d5 {[%clk 0:03:00]} 3. f3 {[%clk 0:02:57]}  dxe4 {[%clk 0:03:00]} 4. fxe4 {[%clk 0:02:58]}  e5 {[%clk 0:03:01]} 5. Nf3 {[%clk 0:02:58]}  Bg4 {[%clk 0:03:01]} 6. Bc4 {[%clk 0:02:58]}  Nd7 {[%clk 0:03:01]} 7. c3 {[%clk 0:02:56]}  Bxf3 {[%clk 0:02:55]} 8. Qxf3 {[%clk 0:02:56]}  Ngf6 {[%clk 0:02:56]} 9. O-O {[%clk 0:02:44]}  Bd6 {[%clk 0:02:56]} 10. Qg3 {[%clk 0:02:22]}  O-O {[%clk 0:02:47]} 11. Bh6 {[%clk 0:02:21]}  Nh5 {[%clk 0:02:48]} 12. Qf3 {[%clk 0:02:21]}  Qh4 {[%clk 0:02:43]} 13. Bxf7+ {[%clk 0:01:56]}  Kh8 {[%clk 0:02:43]} 14. Qxh5 {[%clk 0:01:45]}  Qxe4 {[%clk 0:02:42]} 15. Nd2 {[%clk 0:01:30]}  Qc2 {[%clk 0:02:27]} 16. Bg5 {[%clk 0:00:56]}  exd4 {[%clk 0:02:22]} 17. Rac1 {[%clk 0:00:47]}  Qd3 {[%clk 0:02:17]} 18. Rf3 {[%clk 0:00:45]}  Qe2 {[%clk 0:02:17]} 19. Bg6 {[%clk 0:00:39]}  h6 {[%clk 0:02:10]} 20. Bxh6 {[%clk 0:00:39]}  Rxf3 {[%clk 0:02:03]} 21. Bg5+ {[%clk 0:00:35]} 1-0


[Site "https://www.chess.com"]

[Event "Titled Tuesday Blitz August 15 Late 2023"]
[White "Andrews, Todd"]
[Black "Postlmayer, Jakob"]
[WhiteFideId "2012456"]
[BlackFideId "1643622"]
[WhiteElo "2413"]
[BlackElo "2546"]
[Result "0-1"]
[Round "6"]
[TimeControl "180+1"]
[Date "2023.08.15"]
[WhiteClock "0:00:00"]
[BlackClock "0:00:05"]
[Board "82"]

1. e4 {[%clk 0:03:00]}  c5 {[%clk 0:02:58]} 2. Nf3 {[%clk 0:03:01]}  d6 {[%clk 0:02:58]} 3. d4 {[%clk 0:03:02]}  cxd4 {[%clk 0:02:58]} 4. Nxd4 {[%clk 0:03:03]}  Nf6 {[%clk 0:02:58]} 5. Nc3 {[%clk 0:03:03]}  a6 {[%clk 0:02:58]} 6. Bc4 {[%clk 0:03:04]}  e6 {[%clk 0:02:58]} 7. Bb3 {[%clk 0:03:05]}  b5 {[%clk 0:02:58]} 8. Qe2 {[%clk 0:03:04]}  Nbd7 {[%clk 0:02:48]} 9. g4 {[%clk 0:03:03]}  Nc5 {[%clk 0:02:46]} 10. g5 {[%clk 0:03:04]}  Nfd7 {[%clk 0:02:45]} 11. Bd5 {[%clk 0:03:04]}  exd5 {[%clk 0:02:21]} 12. Nc6 {[%clk 0:03:04]}  Qc7 {[%clk 0:02:07]} 13. exd5+ {[%clk 0:03:04]}  Ne5 {[%clk 0:02:06]} 14. f4 {[%clk 0:03:04]}  Be7 {[%clk 0:01:51]} 15. fxe5 {[%clk 0:03:01]}  dxe5 {[%clk 0:01:50]} 16. Be3 {[%clk 0:02:47]}  O-O {[%clk 0:01:36]} 17. O-O-O {[%clk 0:02:44]}  Bd6 {[%clk 0:01:12]} 18. Bxc5 {[%clk 0:02:07]}  Bxc5 {[%clk 0:01:13]} 19. Ne4 {[%clk 0:02:08]}  Bb6 {[%clk 0:00:50]} 20. Rhf1 {[%clk 0:01:37]}  Bh3 {[%clk 0:00:35]} 21. Qh5 {[%clk 0:01:09]}  Bxf1 {[%clk 0:00:34]} 22. Rxf1 {[%clk 0:01:10]}  Qd7 {[%clk 0:00:18]} 23. Nf6+ {[%clk 0:00:31]}  gxf6 {[%clk 0:00:18]} 24. gxf6 {[%clk 0:00:32]}  Kh8 {[%clk 0:00:16]} 25. Nxe5 {[%clk 0:00:29]}  Qe8 {[%clk 0:00:09]} 26. Re1 {[%clk 0:00:20]}  Bc7 {[%clk 0:00:07]} 27. Nf3 {[%clk 0:00:14]}  Bf4+ {[%clk 0:00:06]} 28. Kb1 {[%clk 0:00:12]}  Qd8 {[%clk 0:00:07]} 29. Qf5 {[%clk 0:00:09]}  Re8 {[%clk 0:00:06]} 30. Rg1 {[%clk 0:00:07]}  Rg8 {[%clk 0:00:06]} 31. Rd1 {[%clk 0:00:05]}  Bd6 {[%clk 0:00:05]} 32. Ng5 {[%clk 0:00:04]}  Rxg5 {[%clk 0:00:05]} 33. Qxg5 {[%clk 0:00:05]}  Qg8 {[%clk 0:00:05]} 34. Qf5 {[%clk 0:00:05]}  Qg6 {[%clk 0:00:05]} 35. Qf3 {[%clk 0:00:04]}  Rg8 {[%clk 0:00:04]} 36. a3 {[%clk 0:00:05]}  Be5 {[%clk 0:00:04]} 37. Rf1 {[%clk 0:00:04]}  Bd6 {[%clk 0:00:03]} 38. h4 {[%clk 0:00:03]}  h6 {[%clk 0:00:03]} 39. h5 {[%clk 0:00:03]}  Qg5 {[%clk 0:00:03]} 40. Qe4 {[%clk 0:00:03]}  Rd8 {[%clk 0:00:03]} 41. Re1 {[%clk 0:00:03]}  Bf8 {[%clk 0:00:04]} 42. Qd4 {[%clk 0:00:01]}  Qxd5 {[%clk 0:00:03]} 43. Qe4 {[%clk 0:00:01]}  Qxe4 {[%clk 0:00:04]} 44. Rxe4 {[%clk 0:00:02]}  Rd6 {[%clk 0:00:04]} 45. Ka2 {[%clk 0:00:03]}  Rxf6 {[%clk 0:00:03]} 46. Re8 {[%clk 0:00:04]}  Kg7 {[%clk 0:00:04]} 47. Ra8 {[%clk 0:00:04]}  Rf5 {[%clk 0:00:04]} 48. Rxa6 {[%clk 0:00:05]}  Rxh5 {[%clk 0:00:05]} 49. Ra5 {[%clk 0:00:05]}  Rg5 {[%clk 0:00:05]} 50. a4 {[%clk 0:00:06]}  bxa4 {[%clk 0:00:05]} 51. Rxa4 {[%clk 0:00:06]}  h5 {[%clk 0:00:05]} 52. Rh4 {[%clk 0:00:06]}  Be7 {[%clk 0:00:05]} 53. c3 {[%clk 0:00:06]}  Ra5+ {[%clk 0:00:05]} 54. Kb3 {[%clk 0:00:00]}  Bxh4 {[%clk 0:00:05]} 0-1


[Site "https://www.chess.com"]